[Event "Titled Tuesday Blitz January 31 Early 2023"]
[White "Defend, Balint"]
[Black "Gureeva, Dina"]
[WhiteFideId "17004853"]
[BlackFideId "4170695"]
[WhiteElo "1673"]
[BlackElo "2178"]
[Result "0-1"]
[Round "04"]
[TimeControl "180+2"]
[Date "2023.01.31"]
[WhiteClock "0:00:09"]
[BlackClock "0:00:23"]

1. e4 {[%clk 0:03:00]}  d6 {[%clk 0:02:59]} 2. d4 {[%clk 0:03:00]}  Nf6 {[%clk 0:02:59]} 3. Nc3 {[%clk 0:03:00]}  e5 {[%clk 0:02:59]} 4. Nf3 {[%clk 0:02:55]}  Nbd7 {[%clk 0:02:59]} 5. Bc4 {[%clk 0:02:54]}  Be7 {[%clk 0:02:59]} 6. a4 {[%clk 0:02:54]}  a5 {[%clk 0:02:57]} 7. O-O {[%clk 0:02:54]}  O-O {[%clk 0:02:56]} 8. h3 {[%clk 0:02:53]}  c6 {[%clk 0:02:56]} 9. Ba2 {[%clk 0:02:52]}  exd4 {[%clk 0:02:55]} 10. Nxd4 {[%clk 0:02:52]}  Nc5 {[%clk 0:02:55]} 11. Re1 {[%clk 0:02:50]}  Be6 {[%clk 0:02:55]} 12. Nxe6 {[%clk 0:02:16]}  fxe6 {[%clk 0:02:53]} 13. e5 {[%clk 0:02:16]}  Nd5 {[%clk 0:02:52]} 14. exd6 {[%clk 0:02:08]}  Bxd6 {[%clk 0:02:52]} 15. Ne4 {[%clk 0:02:04]}  Nxe4 {[%clk 0:02:49]} 16. Rxe4 {[%clk 0:02:05]}  Bc5 {[%clk 0:02:49]} 17. Be3 {[%clk 0:02:02]}  Bxe3 {[%clk 0:02:44]} 18. fxe3 {[%clk 0:02:00]}  Qf6 {[%clk 0:02:44]} 19. Qd4 {[%clk 0:01:46]}  Qf2+ {[%clk 0:02:22]} 20. Kh1 {[%clk 0:01:42]}  Qxc2 {[%clk 0:02:20]} 21. Rxe6 {[%clk 0:01:37]}  Rf7 {[%clk 0:02:14]} 22. Rg1 {[%clk 0:01:18]}  Raf8 {[%clk 0:02:01]} 23. e4 {[%clk 0:01:17]}  Nb4 {[%clk 0:02:01]} 24. Bc4 {[%clk 0:01:10]}  Kh8 {[%clk 0:01:56]} 25. Re8 {[%clk 0:00:46]}  Rxe8 {[%clk 0:01:04]} 26. Bxf7 {[%clk 0:00:45]}  Ra8 {[%clk 0:01:00]} 27. e5 {[%clk 0:00:39]}  Qf5 {[%clk 0:00:47]} 28. e6 {[%clk 0:00:35]}  Nd5 {[%clk 0:00:48]} 29. Re1 {[%clk 0:00:29]}  h6 {[%clk 0:00:28]} 30. Kh2 {[%clk 0:00:26]}  Rc8 {[%clk 0:00:24]} 31. Re5 {[%clk 0:00:25]}  Qf6 {[%clk 0:00:23]} 32. Qe4 {[%clk 0:00:21]}  Ne7 {[%clk 0:00:23]} 33. Rc5 {[%clk 0:00:20]}  Rd8 {[%clk 0:00:23]} 34. Qe5 {[%clk 0:00:20]}  Qxe5+ {[%clk 0:00:23]} 35. Rxe5 {[%clk 0:00:20]}  g5 {[%clk 0:00:23]} 36. Re3 {[%clk 0:00:19]}  Kg7 {[%clk 0:00:24]} 37. Rb3 {[%clk 0:00:20]}  Rb8 {[%clk 0:00:23]} 38. g4 {[%clk 0:00:18]}  Kf6 {[%clk 0:00:23]} 39. Rf3+ {[%clk 0:00:17]}  Ke5 {[%clk 0:00:23]} 40. Re3+ {[%clk 0:00:16]}  Kf6 {[%clk 0:00:23]} 41. Rb3 {[%clk 0:00:17]}  b5 {[%clk 0:00:23]} 42. axb5 {[%clk 0:00:16]}  cxb5 {[%clk 0:00:24]} 43. Rc3 {[%clk 0:00:17]}  a4 {[%clk 0:00:24]} 44. Rc7 {[%clk 0:00:17]}  b4 {[%clk 0:00:24]} 45. Rc1 {[%clk 0:00:14]}  a3 {[%clk 0:00:24]} 46. bxa3 {[%clk 0:00:15]}  bxa3 {[%clk 0:00:24]} 47. Ra1 {[%clk 0:00:15]}  Rb2+ {[%clk 0:00:25]} 48. Kg3 {[%clk 0:00:15]}  a2 {[%clk 0:00:25]} 49. Kf3 {[%clk 0:00:15]}  Nc6 {[%clk 0:00:25]} 50. Ke3 {[%clk 0:00:15]}  Ne5 {[%clk 0:00:24]} 51. Kd4 {[%clk 0:00:15]}  Nxf7 {[%clk 0:00:25]} 52. exf7 {[%clk 0:00:15]}  Kxf7 {[%clk 0:00:25]} 53. Ke5 {[%clk 0:00:13]}  Rf2 {[%clk 0:00:24]} 54. Ke4 {[%clk 0:00:12]}  Ke6 {[%clk 0:00:24]} 55. Rd1 {[%clk 0:00:11]}  Rb2 {[%clk 0:00:23]} 56. Ra1 {[%clk 0:00:11]}  Kd6 {[%clk 0:00:24]} 57. Kd4 {[%clk 0:00:11]}  Kc6 {[%clk 0:00:23]} 58. Kc4 {[%clk 0:00:11]}  Rh2 {[%clk 0:00:23]} 59. Kd4 {[%clk 0:00:09]}  Kb5 {[%clk 0:00:23]} 60. Kc3 {[%clk 0:00:09]}  Kc5 {[%clk 0:00:23]} 61. Kb3 {[%clk 0:00:09]}  Kd4 {[%clk 0:00:24]} 62. Ka3 {[%clk 0:00:07]}  Ke4 {[%clk 0:00:24]} 63. Rf1 {[%clk 0:00:05]}  Kd3 {[%clk 0:00:19]} 64. Kb3 {[%clk 0:00:05]}  Ke3 {[%clk 0:00:19]} 65. Rc1 {[%clk 0:00:03]}  Ke4 {[%clk 0:00:18]} 66. Ka3 {[%clk 0:00:03]}  Rxh3+ {[%clk 0:00:18]} 67. Kxa2 {[%clk 0:00:03]}  Kf4 {[%clk 0:00:19]} 68. Rc6 {[%clk 0:00:03]}  Kxg4 {[%clk 0:00:19]} 69. Kb2 {[%clk 0:00:03]}  h5 {[%clk 0:00:19]} 70. Kc2 {[%clk 0:00:04]}  Re3 {[%clk 0:00:19]} 71. Kd2 {[%clk 0:00:04]}  Re7 {[%clk 0:00:19]} 72. Rc4+ {[%clk 0:00:05]}  Kg3 {[%clk 0:00:19]} 73. Rc6 {[%clk 0:00:06]}  g4 {[%clk 0:00:19]} 74. Rh6 {[%clk 0:00:06]}  h4 {[%clk 0:00:19]} 75. Kd3 {[%clk 0:00:07]}  h3 {[%clk 0:00:20]} 76. Rh8 {[%clk 0:00:08]}  h2 {[%clk 0:00:20]} 77. Rh6 {[%clk 0:00:09]}  Re1 {[%clk 0:00:20]} 78. Rf6 {[%clk 0:00:09]}  h1=Q {[%clk 0:00:21]} 79. Kd4 {[%clk 0:00:07]}  Rd1+ {[%clk 0:00:21]} 80. Kc5 {[%clk 0:00:07]}  Qd5+ {[%clk 0:00:21]} 81. Kb4 {[%clk 0:00:08]}  Rb1+ {[%clk 0:00:21]} 82. Kc3 {[%clk 0:00:08]}  Rc1+ {[%clk 0:00:21]} 83. Kb2 {[%clk 0:00:08]}  Qd4+ {[%clk 0:00:21]} 84. Kxc1 {[%clk 0:00:08]}  Qxf6 {[%clk 0:00:22]} 85. Kd2 {[%clk 0:00:09]}  Qf3 {[%clk 0:00:22]} 86. Kc2 {[%clk 0:00:09]}  Kf4 {[%clk 0:00:23]} 0-1


[Site "https://www.chess.com"]

[Event "Titled Tuesday Blitz January 31 Early 2023"]
[White "Matveeva, Olga"]
[Black "Ozates, Tuna"]
[WhiteFideId "24107018"]
[BlackFideId "6354521"]
[WhiteElo "2128"]
[BlackElo "2251"]
[Result "0-1"]
[Round "04"]
[TimeControl "180+2"]
[Date "2023.01.31"]
[WhiteClock "0:00:05"]
[BlackClock "0:00:54"]

1. d4 {[%clk 0:03:00]}  Nf6 {[%clk 0:02:58]} 2. c4 {[%clk 0:03:01]}  e6 {[%clk 0:02:56]} 3. g3 {[%clk 0:03:01]}  d5 {[%clk 0:02:51]} 4. Nf3 {[%clk 0:03:00]}  dxc4 {[%clk 0:02:51]} 5. Bg2 {[%clk 0:03:00]}  c5 {[%clk 0:02:51]} 6. O-O {[%clk 0:02:58]}  Nc6 {[%clk 0:02:52]} 7. Qa4 {[%clk 0:02:55]}  Bd7 {[%clk 0:02:51]} 8. Qxc4 {[%clk 0:02:52]}  b5 {[%clk 0:02:52]} 9. Qd3 {[%clk 0:02:50]}  c4 {[%clk 0:02:50]} 10. Qd1 {[%clk 0:02:44]}  Bd6 {[%clk 0:02:46]} 11. e3 {[%clk 0:02:19]}  O-O {[%clk 0:02:45]} 12. a4 {[%clk 0:02:16]}  a6 {[%clk 0:02:46]} 13. Na3 {[%clk 0:02:05]}  Rb8 {[%clk 0:02:45]} 14. Bd2 {[%clk 0:01:52]}  Ne4 {[%clk 0:02:34]} 15. Qc2 {[%clk 0:01:44]}  Nxd2 {[%clk 0:02:33]} 16. Nxd2 {[%clk 0:01:44]}  Nb4 {[%clk 0:02:30]} 17. Qd1 {[%clk 0:01:36]}  Nd3 {[%clk 0:02:27]} 18. Qc2 {[%clk 0:01:24]}  Qe7 {[%clk 0:02:16]} 19. Be4 {[%clk 0:01:23]}  Nb4 {[%clk 0:02:12]} 20. Qd1 {[%clk 0:01:22]}  f5 {[%clk 0:02:10]} 21. Bg2 {[%clk 0:01:18]}  e5 {[%clk 0:02:10]} 22. dxe5 {[%clk 0:01:09]}  Bxe5 {[%clk 0:02:11]} 23. Naxc4 {[%clk 0:01:03]}  bxc4 {[%clk 0:02:09]} 24. Nxc4 {[%clk 0:01:03]}  Bf6 {[%clk 0:02:03]} 25. Qe2 {[%clk 0:00:43]}  Be6 {[%clk 0:01:51]} 26. Rfd1 {[%clk 0:00:41]}  Rfc8 {[%clk 0:01:49]} 27. Rac1 {[%clk 0:00:29]}  Na2 {[%clk 0:01:41]} 28. Rc2 {[%clk 0:00:25]}  Qc5 {[%clk 0:01:39]} 29. Na3 {[%clk 0:00:18]}  Qe7 {[%clk 0:01:39]} 30. Qxa6 {[%clk 0:00:16]}  Rxc2 {[%clk 0:01:35]} 31. Nxc2 {[%clk 0:00:17]}  Bb3 {[%clk 0:01:34]} 32. Bd5+ {[%clk 0:00:14]}  Bxd5 {[%clk 0:01:33]} 33. Rxd5 {[%clk 0:00:15]}  Rxb2 {[%clk 0:01:27]} 34. Qa8+ {[%clk 0:00:15]}  Kf7 {[%clk 0:01:23]} 35. Nd4 {[%clk 0:00:11]}  Rb1+ {[%clk 0:01:19]} 36. Kg2 {[%clk 0:00:11]}  Qe4+ {[%clk 0:01:19]} 37. Nf3 {[%clk 0:00:11]}  Nb4 {[%clk 0:01:08]} 38. Rd7+ {[%clk 0:00:11]}  Kg6 {[%clk 0:01:05]} 39. Qa7 {[%clk 0:00:07]}  Nd3 {[%clk 0:00:58]} 40. h4 {[%clk 0:00:06]}  Ne1+ {[%clk 0:00:55]} 41. Kh3 {[%clk 0:00:05]}  Qg4+ {[%clk 0:00:54]} 0-1


[Site "https://www.chess.com"]

[Event "Titled Tuesday Blitz January 31 Early 2023"]
[White "Roux, Baptiste"]
[Black "Balint, Vilmos"]
[WhiteFideId "36017450"]
[BlackFideId "718050"]
[WhiteElo "2300"]
[BlackElo "2169"]
[Result "1-0"]
[Round "04"]
[TimeControl "180+2"]
[Date "2023.01.31"]
[WhiteClock "0:00:11"]
[BlackClock "0:00:42"]

1. e4 {[%clk 0:03:00]}  e6 {[%clk 0:02:59]} 2. d4 {[%clk 0:02:57]}  d5 {[%clk 0:03:00]} 3. Bd3 {[%clk 0:02:58]}  c5 {[%clk 0:02:59]} 4. exd5 {[%clk 0:02:58]}  exd5 {[%clk 0:02:59]} 5. Nf3 {[%clk 0:02:57]}  c4 {[%clk 0:02:59]} 6. Be2 {[%clk 0:02:58]}  Nf6 {[%clk 0:02:59]} 7. O-O {[%clk 0:02:58]}  h6 {[%clk 0:02:59]} 8. b3 {[%clk 0:02:59]}  cxb3 {[%clk 0:02:59]} 9. axb3 {[%clk 0:03:00]}  Be7 {[%clk 0:02:59]} 10. c4 {[%clk 0:02:48]}  O-O {[%clk 0:03:00]} 11. Nc3 {[%clk 0:02:48]}  Nc6 {[%clk 0:02:58]} 12. Bf4 {[%clk 0:02:47]}  Bf5 {[%clk 0:02:56]} 13. Ne5 {[%clk 0:02:31]}  Nb4 {[%clk 0:02:55]} 14. Bf3 {[%clk 0:02:09]}  a6 {[%clk 0:02:42]} 15. c5 {[%clk 0:02:02]}  a5 {[%clk 0:02:22]} 16. Rc1 {[%clk 0:01:45]}  Re8 {[%clk 0:02:21]} 17. Re1 {[%clk 0:01:44]}  Bf8 {[%clk 0:02:09]} 18. h3 {[%clk 0:01:40]}  Nd7 {[%clk 0:02:01]} 19. g4 {[%clk 0:00:57]}  Nxe5 {[%clk 0:02:00]} 20. Bxe5 {[%clk 0:00:51]}  Bg6 {[%clk 0:01:59]} 21. Re3 {[%clk 0:00:38]}  f6 {[%clk 0:01:48]} 22. Bf4 {[%clk 0:00:39]}  Rxe3 {[%clk 0:01:48]} 23. fxe3 {[%clk 0:00:30]}  Qd7 {[%clk 0:01:38]} 24. Qd2 {[%clk 0:00:28]}  Re8 {[%clk 0:01:33]} 25. Ra1 {[%clk 0:00:28]}  Qd8 {[%clk 0:01:32]} 26. Kg2 {[%clk 0:00:26]}  Kh7 {[%clk 0:01:31]} 27. Kh2 {[%clk 0:00:23]}  f5 {[%clk 0:01:14]} 28. Qg2 {[%clk 0:00:18]}  fxg4 {[%clk 0:01:13]} 29. hxg4 {[%clk 0:00:19]}  Nc2 {[%clk 0:01:07]} 30. Rf1 {[%clk 0:00:15]}  Nxe3 {[%clk 0:01:08]} 31. Bxe3 {[%clk 0:00:15]}  Rxe3 {[%clk 0:01:08]} 32. Nxd5 {[%clk 0:00:16]}  Rxb3 {[%clk 0:01:02]} 33. Be4 {[%clk 0:00:16]}  Qh4+ {[%clk 0:01:01]} 34. Kg1 {[%clk 0:00:16]}  Qg5 {[%clk 0:00:59]} 35. Nf4 {[%clk 0:00:11]}  Bxe4 {[%clk 0:00:45]} 36. Qxe4+ {[%clk 0:00:12]}  Kh8 {[%clk 0:00:46]} 37. Ng6+ {[%clk 0:00:12]}  Kg8 {[%clk 0:00:42]} 38. Rxf8+ {[%clk 0:00:10]}  Kh7 {[%clk 0:00:42]} 39. Rh8# {[%clk 0:00:11]} 1-0


[Site "https://www.chess.com"]

[Event "Titled Tuesday Blitz January 31 Early 2023"]
[White "Kalajzic, Ivan"]
[Black "Manukyan, Artyom"]
[WhiteFideId "14506378"]
[BlackFideId "13305786"]
[WhiteElo "2062"]
[BlackElo "2110"]
[Result "0-1"]
[Round "04"]
[TimeControl "180+2"]
[Date "2023.01.31"]
[WhiteClock "0:00:12"]
[BlackClock "0:00:54"]

1. d4 {[%clk 0:03:00]}  Nf6 {[%clk 0:02:58]} 2. Nc3 {[%clk 0:03:00]}  d5 {[%clk 0:02:57]} 3. Bg5 {[%clk 0:03:00]}  Nbd7 {[%clk 0:02:48]} 4. e3 {[%clk 0:03:00]}  c6 {[%clk 0:02:48]} 5. f4 {[%clk 0:03:00]}  h6 {[%clk 0:02:48]} 6. Bh4 {[%clk 0:02:59]}  e6 {[%clk 0:02:48]} 7. Nf3 {[%clk 0:02:59]}  Be7 {[%clk 0:02:49]} 8. Bd3 {[%clk 0:02:59]}  Qc7 {[%clk 0:02:37]} 9. O-O {[%clk 0:02:58]}  O-O {[%clk 0:02:35]} 10. Ne5 {[%clk 0:02:59]}  a6 {[%clk 0:02:33]} 11. g4 {[%clk 0:02:51]}  Nxe5 {[%clk 0:02:26]} 12. fxe5 {[%clk 0:02:36]}  Nh7 {[%clk 0:02:26]} 13. Bg3 {[%clk 0:02:31]}  c5 {[%clk 0:02:18]} 14. Kh1 {[%clk 0:02:08]}  b5 {[%clk 0:02:16]} 15. Bxh7+ {[%clk 0:02:05]}  Kxh7 {[%clk 0:02:14]} 16. Ne2 {[%clk 0:02:06]}  Bb7 {[%clk 0:02:09]} 17. c3 {[%clk 0:02:00]}  a5 {[%clk 0:01:45]} 18. Nf4 {[%clk 0:01:54]}  b4 {[%clk 0:01:41]} 19. Qd3+ {[%clk 0:01:52]}  Kg8 {[%clk 0:01:40]} 20. Nh5 {[%clk 0:01:52]}  Ba6 {[%clk 0:01:40]} 21. Qc2 {[%clk 0:01:28]}  Bxf1 {[%clk 0:01:34]} 22. Rxf1 {[%clk 0:01:29]}  cxd4 {[%clk 0:01:26]} 23. exd4 {[%clk 0:01:29]}  Qc4 {[%clk 0:01:24]} 24. Qf2 {[%clk 0:01:06]}  bxc3 {[%clk 0:01:17]} 25. bxc3 {[%clk 0:01:02]}  Qd3 {[%clk 0:01:14]} 26. Nf4 {[%clk 0:00:48]}  Qe4+ {[%clk 0:01:12]} 27. Kg1 {[%clk 0:00:44]}  Rab8 {[%clk 0:01:13]} 28. Re1 {[%clk 0:00:41]}  Rb1 {[%clk 0:01:12]} 29. Rxb1 {[%clk 0:00:38]}  Qxb1+ {[%clk 0:01:13]} 30. Kg2 {[%clk 0:00:37]}  Qe4+ {[%clk 0:01:10]} 31. Kh3 {[%clk 0:00:37]}  Rb8 {[%clk 0:01:10]} 32. Nh5 {[%clk 0:00:21]}  a4 {[%clk 0:01:06]} 33. Bh4 {[%clk 0:00:20]}  Bxh4 {[%clk 0:01:04]} 34. Qxh4 {[%clk 0:00:20]}  Qe3+ {[%clk 0:00:54]} 35. Ng3 {[%clk 0:00:19]}  Qg5 {[%clk 0:00:54]} 36. Qxg5 {[%clk 0:00:12]}  hxg5 {[%clk 0:00:54]} 0-1


[Site "https://www.chess.com"]

[Event "Titled Tuesday Blitz January 31 Early 2023"]
[White "Pavlidou, Ekaterini"]
[Black "Tomaszewski, Kacper"]
[WhiteFideId "4213262"]
[BlackFideId "1127373"]
[WhiteElo "2088"]
[BlackElo "2313"]
[Result "0-1"]
[Round "04"]
[TimeControl "180+2"]
[Date "2023.01.31"]
[WhiteClock "0:00:03"]
[BlackClock "0:00:05"]

1. d4 {[%clk 0:03:00]}  d6 {[%clk 0:02:58]} 2. c4 {[%clk 0:02:58]}  Nf6 {[%clk 0:02:57]} 3. Nf3 {[%clk 0:02:56]}  Bf5 {[%clk 0:02:55]} 4. Nc3 {[%clk 0:02:55]}  e6 {[%clk 0:02:55]} 5. Nd2 {[%clk 0:02:54]}  d5 {[%clk 0:02:52]} 6. e3 {[%clk 0:02:50]}  c5 {[%clk 0:02:49]} 7. cxd5 {[%clk 0:02:49]}  exd5 {[%clk 0:02:48]} 8. Bb5+ {[%clk 0:02:49]}  Nc6 {[%clk 0:02:48]} 9. Bxc6+ {[%clk 0:02:47]}  bxc6 {[%clk 0:02:47]} 10. Nb3 {[%clk 0:02:44]}  c4 {[%clk 0:02:43]} 11. Nc5 {[%clk 0:02:41]}  Bxc5 {[%clk 0:02:41]} 12. dxc5 {[%clk 0:02:41]}  Bd3 {[%clk 0:02:36]} 13. Ne2 {[%clk 0:02:37]}  Qa5+ {[%clk 0:02:23]} 14. Bd2 {[%clk 0:02:35]}  Qxc5 {[%clk 0:02:23]} 15. O-O {[%clk 0:02:31]}  O-O {[%clk 0:02:20]} 16. Bc3 {[%clk 0:02:31]}  Ne4 {[%clk 0:02:10]} 17. Bd4 {[%clk 0:02:30]}  Qd6 {[%clk 0:02:08]} 18. f3 {[%clk 0:02:29]}  Ng5 {[%clk 0:02:04]} 19. Rf2 {[%clk 0:02:15]}  Ne6 {[%clk 0:01:57]} 20. Nf4 {[%clk 0:02:10]}  Nxf4 {[%clk 0:01:50]} 21. exf4 {[%clk 0:02:10]}  Qxf4 {[%clk 0:01:48]} 22. Bc3 {[%clk 0:02:02]}  Rfe8 {[%clk 0:01:43]} 23. b3 {[%clk 0:01:58]}  Re6 {[%clk 0:01:29]} 24. bxc4 {[%clk 0:01:57]}  Bxc4 {[%clk 0:01:29]} 25. Qc2 {[%clk 0:01:53]}  Rae8 {[%clk 0:01:26]} 26. Qb2 {[%clk 0:01:52]}  f6 {[%clk 0:01:18]} 27. g3 {[%clk 0:01:43]}  Qd6 {[%clk 0:01:14]} 28. Rd1 {[%clk 0:01:39]}  Re2 {[%clk 0:01:08]} 29. Rxe2 {[%clk 0:01:27]}  Rxe2 {[%clk 0:01:09]} 30. Qb7 {[%clk 0:01:25]}  h5 {[%clk 0:00:53]} 31. Qc8+ {[%clk 0:01:22]}  Kf7 {[%clk 0:00:45]} 32. Qf5 {[%clk 0:01:17]}  Qc5+ {[%clk 0:00:39]} 33. Bd4 {[%clk 0:01:13]}  Qe7 {[%clk 0:00:23]} 34. Qxh5+ {[%clk 0:01:09]}  Kg8 {[%clk 0:00:24]} 35. f4 {[%clk 0:00:41]}  Re1+ {[%clk 0:00:23]} 36. Kf2 {[%clk 0:00:40]}  Rxd1 {[%clk 0:00:20]} 37. Qxd1 {[%clk 0:00:39]}  c5 {[%clk 0:00:21]} 38. Ba1 {[%clk 0:00:34]}  d4 {[%clk 0:00:21]} 39. Qf3 {[%clk 0:00:31]}  Bxa2 {[%clk 0:00:14]} 40. f5 {[%clk 0:00:23]}  Bf7 {[%clk 0:00:13]} 41. g4 {[%clk 0:00:20]}  a5 {[%clk 0:00:09]} 42. Bb2 {[%clk 0:00:17]}  a4 {[%clk 0:00:09]} 43. Ba3 {[%clk 0:00:17]}  Qe3+ {[%clk 0:00:07]} 44. Qxe3 {[%clk 0:00:17]}  dxe3+ {[%clk 0:00:08]} 45. Kxe3 {[%clk 0:00:17]}  c4 {[%clk 0:00:09]} 46. Kd4 {[%clk 0:00:18]}  Kh7 {[%clk 0:00:07]} 47. h3 {[%clk 0:00:15]}  Kh6 {[%clk 0:00:07]} 48. Bc1+ {[%clk 0:00:15]}  Kh7 {[%clk 0:00:07]} 49. Bd2 {[%clk 0:00:15]}  g6 {[%clk 0:00:07]} 50. Bb4 {[%clk 0:00:14]}  gxf5 {[%clk 0:00:06]} 51. gxf5 {[%clk 0:00:14]}  Kh6 {[%clk 0:00:07]} 52. Ke4 {[%clk 0:00:14]}  Kg5 {[%clk 0:00:07]} 53. Bd2+ {[%clk 0:00:14]}  Kh4 {[%clk 0:00:07]} 54. Bc3 {[%clk 0:00:14]}  Kg5 {[%clk 0:00:08]} 55. Bd2+ {[%clk 0:00:13]}  Kh4 {[%clk 0:00:08]} 56. Bc3 {[%clk 0:00:13]}  a3 {[%clk 0:00:08]} 57. Kf4 {[%clk 0:00:11]}  Kxh3 {[%clk 0:00:08]} 58. Bxf6 {[%clk 0:00:12]}  Kg2 {[%clk 0:00:07]} 59. Ke3 {[%clk 0:00:10]}  Kf1 {[%clk 0:00:07]} 60. Kd2 {[%clk 0:00:10]}  Kf2 {[%clk 0:00:07]} 61. Bd4+ {[%clk 0:00:09]}  Kf3 {[%clk 0:00:07]} 62. f6 {[%clk 0:00:09]}  Ke4 {[%clk 0:00:07]} 63. Bc3 {[%clk 0:00:09]}  Kd5 {[%clk 0:00:08]} 64. Kc1 {[%clk 0:00:09]}  Kc5 {[%clk 0:00:07]} 65. Kb1 {[%clk 0:00:09]}  Kb5 {[%clk 0:00:08]} 66. Ka2 {[%clk 0:00:09]}  Ka4 {[%clk 0:00:08]} 67. Ka1 {[%clk 0:00:08]}  Bg6 {[%clk 0:00:08]} 68. Ka2 {[%clk 0:00:07]}  Be8 {[%clk 0:00:08]} 69. Bd4 {[%clk 0:00:07]}  Bf7 {[%clk 0:00:08]} 70. Bc3 {[%clk 0:00:08]}  Be6 {[%clk 0:00:08]} 71. Bd4 {[%clk 0:00:06]}  c3+ {[%clk 0:00:08]} 72. Kb1 {[%clk 0:00:06]}  a2+ {[%clk 0:00:05]} 73. Ka1 {[%clk 0:00:06]}  c2 {[%clk 0:00:04]} 74. Bb2 {[%clk 0:00:06]}  Kb3 {[%clk 0:00:04]} 75. Bc1 {[%clk 0:00:06]}  Bf7 {[%clk 0:00:04]} 76. Bd2 {[%clk 0:00:06]}  Be6 {[%clk 0:00:03]} 77. Bc1 {[%clk 0:00:06]}  Bd5 {[%clk 0:00:03]} 78. Bd2 {[%clk 0:00:07]}  Bf7 {[%clk 0:00:04]} 79. Bc1 {[%clk 0:00:07]}  Kc3 {[%clk 0:00:05]} 80. Bb2+ {[%clk 0:00:07]}  Kd2 {[%clk 0:00:05]} 81. Bc1+ {[%clk 0:00:07]}  Kd1 {[%clk 0:00:04]} 82. Bb2 {[%clk 0:00:07]}  Be6 {[%clk 0:00:05]} 83. f7 {[%clk 0:00:05]}  Bxf7 {[%clk 0:00:05]} 84. Bc1 {[%clk 0:00:05]}  Bb3 {[%clk 0:00:05]} 85. Bb2 {[%clk 0:00:04]}  Ke2 {[%clk 0:00:05]} 86. Bc1 {[%clk 0:00:05]}  Kd3 {[%clk 0:00:06]} 87. Kb2 {[%clk 0:00:05]}  Kc4 {[%clk 0:00:05]} 88. Ka1 {[%clk 0:00:04]}  Kc3 {[%clk 0:00:05]} 89. Bb2+ {[%clk 0:00:04]}  Kd2 {[%clk 0:00:05]} 90. Bc1+ {[%clk 0:00:05]}  Kd1 {[%clk 0:00:06]} 91. Bb2 {[%clk 0:00:03]}  Bg8 {[%clk 0:00:07]} 92. Bc1 {[%clk 0:00:03]}  Bh7 {[%clk 0:00:05]} 0-1


[Site "https://www.chess.com"]

[Event "Titled Tuesday Blitz January 31 Early 2023"]
[White "Malka, Samuel"]
[Black "Pace, Christopher"]
[WhiteFideId "20643675"]
[BlackFideId "2610167"]
[WhiteElo "2165"]
[BlackElo "2053"]
[Result "1/2-1/2"]
[Round "04"]
[TimeControl "180+2"]
[Date "2023.01.31"]
[WhiteClock "0:00:10"]
[BlackClock "0:00:15"]

1. d4 {[%clk 0:03:00]}  Nf6 {[%clk 0:02:59]} 2. c4 {[%clk 0:03:00]}  g6 {[%clk 0:02:56]} 3. Nc3 {[%clk 0:03:00]}  Bg7 {[%clk 0:02:56]} 4. e4 {[%clk 0:03:00]}  d6 {[%clk 0:02:55]} 5. Nf3 {[%clk 0:03:00]}  e5 {[%clk 0:02:49]} 6. dxe5 {[%clk 0:02:50]}  dxe5 {[%clk 0:02:43]} 7. Qxd8+ {[%clk 0:02:50]}  Kxd8 {[%clk 0:02:43]} 8. Nxe5 {[%clk 0:02:35]}  Re8 {[%clk 0:02:34]} 9. Nxf7+ {[%clk 0:02:28]}  Ke7 {[%clk 0:02:34]} 10. Ng5 {[%clk 0:02:27]}  h6 {[%clk 0:02:34]} 11. Nf3 {[%clk 0:02:18]}  Kf7 {[%clk 0:02:31]} 12. Bd3 {[%clk 0:02:15]}  Bg4 {[%clk 0:02:25]} 13. O-O {[%clk 0:02:09]}  Nc6 {[%clk 0:02:18]} 14. Be3 {[%clk 0:02:00]}  Rad8 {[%clk 0:02:17]} 15. Bc2 {[%clk 0:01:50]}  Bxf3 {[%clk 0:02:10]} 16. gxf3 {[%clk 0:01:51]}  Ne5 {[%clk 0:02:11]} 17. Kg2 {[%clk 0:01:43]}  g5 {[%clk 0:01:47]} 18. h3 {[%clk 0:01:39]}  a6 {[%clk 0:01:18]} 19. b3 {[%clk 0:01:35]}  Nh5 {[%clk 0:01:09]} 20. Ne2 {[%clk 0:01:12]}  Ng6 {[%clk 0:01:05]} 21. Rad1 {[%clk 0:01:06]}  Nh4+ {[%clk 0:01:05]} 22. Kh1 {[%clk 0:01:06]}  Nxf3 {[%clk 0:01:03]} 23. Ng3 {[%clk 0:01:04]}  Nf4 {[%clk 0:00:43]} 24. Bxf4 {[%clk 0:01:03]}  gxf4 {[%clk 0:00:43]} 25. Nf5 {[%clk 0:01:00]}  Bf8 {[%clk 0:00:28]} 26. Rd5 {[%clk 0:00:52]}  c6 {[%clk 0:00:22]} 27. Rd3 {[%clk 0:00:41]}  Rxd3 {[%clk 0:00:18]} 28. Bxd3 {[%clk 0:00:42]}  Ng5 {[%clk 0:00:18]} 29. f3 {[%clk 0:00:27]}  Nxh3 {[%clk 0:00:18]} 30. Kg2 {[%clk 0:00:25]}  Ng5 {[%clk 0:00:19]} 31. Rh1 {[%clk 0:00:24]}  Rd8 {[%clk 0:00:19]} 32. Rd1 {[%clk 0:00:19]}  Kf6 {[%clk 0:00:19]} 33. Be2 {[%clk 0:00:17]}  Rxd1 {[%clk 0:00:19]} 34. Bxd1 {[%clk 0:00:18]}  Ke5 {[%clk 0:00:19]} 35. Be2 {[%clk 0:00:17]}  Ne6 {[%clk 0:00:19]} 36. Nh4 {[%clk 0:00:14]}  Nd4 {[%clk 0:00:18]} 37. Bd3 {[%clk 0:00:12]}  Bb4 {[%clk 0:00:17]} 38. Ng6+ {[%clk 0:00:12]}  Kf6 {[%clk 0:00:17]} 39. Nxf4 {[%clk 0:00:12]}  Bd2 {[%clk 0:00:16]} 40. Ne2 {[%clk 0:00:12]}  Nxe2 {[%clk 0:00:13]} 41. Bxe2 {[%clk 0:00:13]}  Kg5 {[%clk 0:00:14]} 42. Kg3 {[%clk 0:00:13]}  Be1+ {[%clk 0:00:13]} 43. Kg2 {[%clk 0:00:12]}  Kf4 {[%clk 0:00:13]} 44. Bf1 {[%clk 0:00:11]}  Ke3 {[%clk 0:00:12]} 45. c5 {[%clk 0:00:09]}  Bb4 {[%clk 0:00:11]} 46. e5 {[%clk 0:00:08]}  Bxc5 {[%clk 0:00:11]} 47. e6 {[%clk 0:00:09]}  Kf4 {[%clk 0:00:10]} 48. a4 {[%clk 0:00:07]}  Ke5 {[%clk 0:00:10]} 49. Bc4 {[%clk 0:00:05]}  b5 {[%clk 0:00:10]} 50. axb5 {[%clk 0:00:06]}  axb5 {[%clk 0:00:11]} 51. Bd3 {[%clk 0:00:07]}  Kxe6 {[%clk 0:00:12]} 52. Kh3 {[%clk 0:00:07]}  Ke5 {[%clk 0:00:12]} 53. Be4 {[%clk 0:00:07]}  b4 {[%clk 0:00:10]} 54. Bxc6 {[%clk 0:00:08]}  Be3 {[%clk 0:00:11]} 55. Kg4 {[%clk 0:00:08]}  Bf4 {[%clk 0:00:12]} 56. Ba4 {[%clk 0:00:08]}  Be3 {[%clk 0:00:12]} 57. Kh5 {[%clk 0:00:09]}  Bf4 {[%clk 0:00:13]} 58. Kg4 {[%clk 0:00:09]}  Be3 {[%clk 0:00:14]} 59. Kh4 {[%clk 0:00:09]}  Bf4 {[%clk 0:00:15]} 60. Kg4 {[%clk 0:00:10]} 1/2-1/2


[Site "https://www.chess.com"]